bitfinex-derivatives/quotes_BTCF0:USTF0_20251009
["timestamp","ask_amount","ask_price","bid_price","bid_amount"]
[1759986913193,0.35824903,122030.0,122020.0,0.3618]
[1759986913399,0.35824903,122030.0,122020.0,3.2376573]
[1759986913598,0.35824903,122030.0,122020.0,3.47706573]
[1759986914200,0.35824903,122030.0,122020.0,3.47806573]
[1759986914407,0.35824903,122030.0,122020.0,3.15672]
[1759986914906,0.35824903,122030.0,122020.0,2.79592]
[1759986915102,0.35824903,122030.0,122020.0,2.77722339]
[1759986915504,0.1188806,122030.0,122020.0,2.77718339]
[1759986915705,0.35824903,122030.0,122020.0,2.77718339]
[1759986916106,0.1188873,122020.0,122010.0,0.68211223]
[1759986916306,0.1188873,122020.0,122010.0,3.47595223]
[1759986916806,0.1188873,122020.0,122010.0,3.47603223]
[1759986917001,0.1188873,122020.0,122010.0,3.47599223]
[1759986917513,0.1188873,122020.0,122010.0,3.47799223]
[1759986917717,0.1188873,122020.0,122010.0,2.73083223]
[1759986918007,0.1188873,122020.0,122010.0,3.47791223]
[1759986918203,0.1188873,122020.0,122010.0,3.48091223]
[1759986918712,0.0958673,122020.0,122010.0,3.48091223]
[1759986920314,0.1188873,122020.0,122010.0,0.68711223]
[1759986920614,0.1188873,122020.0,122010.0,3.48095223]
[1759986921013,0.1188873,122020.0,122010.0,2.73387223]
[1759986921315,0.1188873,122020.0,122010.0,3.48071223]
[1759986921517,0.14076427,122020.0,122010.0,2.73387223]
[1759986921721,0.14076427,122020.0,122010.0,3.48071223]
[1759986922319,0.14076427,122020.0,122010.0,2.73387223]
[1759986922523,0.14076427,122020.0,122010.0,3.48071223]
[1759986924015,0.14076427,122020.0,122010.0,3.48055223]
[1759986924726,0.03580697,122020.0,122010.0,2.73391223]
[1759986924920,0.03580697,122020.0,122010.0,3.48055223]
[1759986925419,0.03580697,122020.0,122010.0,2.73391223]
[1759986925620,0.03580697,122020.0,122010.0,3.48051223]
[1759986925823,0.03580697,122020.0,122010.0,3.48047223]
[1759986926025,0.03580697,122020.0,122010.0,3.46181529]
[1759986926425,0.03580697,122020.0,122010.0,2.95462372]
[1759986926725,0.03580697,122020.0,122010.0,4.10114372]
[1759986927226,0.07163098,122040.0,122020.0,0.0819353]
[1759986927418,0.03473132,122040.0,122030.0,0.68209903]
[1759986927625,0.01278,122040.0,122030.0,0.68209903]
[1759986927922,0.01278,122040.0,122030.0,1.42877903]
[1759986928625,0.01378,122040.0,122030.0,1.42877903]
[1759986928821,0.01578,122040.0,122030.0,1.42877903]
[1759986929021,0.01578,122040.0,122030.0,1.1894106]
[1759986929215,0.01578,122040.0,122030.0,3.47553903]
[1759986930930,0.01578,122040.0,122030.0,2.72889903]
[1759986931527,0.01578,122040.0,122030.0,3.47521903]
[1759986931728,0.01278,122040.0,122030.0,3.47521903]
[1759986932027,0.01578,122040.0,122030.0,3.47521903]
[1759986932429,0.01378,122040.0,122030.0,3.47521903]
[1759986932631,0.01378,122040.0,122030.0,3.47621903]
[1759986934227,0.01278,122040.0,122030.0,3.47721903]
[1759986934926,0.01278,122040.0,122030.0,0.68409903]
[1759986935123,0.01278,122040.0,122030.0,3.47689903]
[1759986936332,0.01278,122040.0,122030.0,3.09161903]
[1759986936531,0.01278,122040.0,122030.0,1.04489903]
[1759986936726,0.01278,122040.0,122030.0,3.83757903]
[1759986939433,0.0346211,122040.0,122030.0,3.83757903]
[1759986942732,0.01278,122040.0,122030.0,3.83757903]
[1759986942937,0.03461844,122040.0,122030.0,3.83757903]
[1759986943125,0.03461844,122040.0,122030.0,1.04489903]
[1759986943533,0.03461844,122040.0,122030.0,3.83709903]
[1759986944337,0.03461844,122040.0,122030.0,3.09153903]
[1759986944532,0.03461844,122040.0,122030.0,3.83705903]
[1759986946231,0.01278,122040.0,122030.0,3.33090746]
[1759986946426,0.01278,122040.0,122030.0,4.07626746]
[1759986946626,0.01278,122040.0,122030.0,3.33090746]
[1759986946836,0.01278,122040.0,122030.0,4.07626746]
[1759986950236,0.01278,122040.0,122030.0,1.28426746]
[1759986950436,0.01278,122040.0,122030.0,4.07606746]
[1759986953942,0.01278,122040.0,122030.0,3.91652387]
[1759986962147,0.01278,122040.0,122030.0,3.91564387]
[1759986963643,0.01278,122040.0,122030.0,3.91560387]
[1759986966452,0.01278,122040.0,122030.0,4.18350387]
[1759986972357,0.01278,122050.0,122040.0,0.0819239]
[1759986972560,0.02183025,122050.0,122040.0,1.82511044]
[1759986972764,0.01393,122060.0,122050.0,0.0819172]
[1759986972957,0.01393,122060.0,122050.0,0.76191047]
[1759986973357,0.01393,122060.0,122050.0,1.50595047]
[1759986973664,0.01393,122060.0,122050.0,0.76191047]
[1759986973858,0.01393,122060.0,122050.0,1.50595047]
[1759986974262,0.01393,122060.0,122050.0,0.76191047]
[1759986974562,0.01993,122060.0,122050.0,0.76191047]
[1759986974862,0.01993,122060.0,122050.0,3.55235047]
[1759986976158,0.01993,122060.0,122050.0,3.55219047]
[1759986979363,0.01993,122060.0,122050.0,0.76191047]
[1759986979565,0.01993,122060.0,122050.0,3.55199047]
[1759986980065,0.01993,122060.0,122050.0,0.76191047]
[1759986980266,0.01993,122060.0,122050.0,3.55195047]
[1759986980461,0.04152194,122060.0,122050.0,3.55195047]
[1759986980662,0.04152194,122060.0,122050.0,3.55191047]
[1759986981763,0.04152194,122060.0,122050.0,0.76191047]
[1759986982065,0.04152194,122060.0,122050.0,3.55187047]
[1759986984568,0.04152194,122060.0,122050.0,0.4427172]
[1759986984762,0.04152194,122060.0,122050.0,3.55175047]
[1759986986063,0.54464244,122060.0,122050.0,0.3608]
[1759986986263,0.1166572,122050.0,122040.0,2.4890039]
[1759986986470,0.4574353,122050.0,122040.0,3.2326439]
[1759986986767,0.13824203,122050.0,122040.0,3.2326439]
[1759986987568,0.14024203,122050.0,122040.0,2.4890039]
[1759986987767,0.14024203,122050.0,122040.0,3.2325639]
[1759986988268,0.14024203,122050.0,122040.0,3.2326039]
[1759986988467,0.14024203,122050.0,122040.0,2.8718039]
[1759986988864,0.14124203,122050.0,122040.0,2.8718039]
[1759986990268,0.14124203,122050.0,122040.0,2.1282439]
[1759986990773,0.14124203,122050.0,122040.0,2.8717239]
[1759986990972,0.14124203,122050.0,122040.0,2.1282839]
[1759986991171,0.14124203,122050.0,122040.0,2.8717239]
[1759986992472,0.0954539,122040.0,122030.0,0.76191877]
[1759986992675,0.1166639,122040.0,122030.0,3.2324855]
[1759986993276,0.1166639,122040.0,122030.0,0.4427255]
[1759986993476,0.85742708,122040.0,122030.0,2.7902]
[1759986993676,1.21822708,122040.0,122030.0,2.7902]
[1759986993878,0.1179248,122030.0,122020.0,0.081931]
[1759986994078,0.1179248,122030.0,122020.0,2.872491]
[1759986994678,0.1179248,122030.0,122020.0,0.081931]
[1759986994879,0.1179248,122030.0,122020.0,2.872451]
[1759986995082,0.1179248,122030.0,122020.0,2.128371]
[1759986995281,0.13948403,122030.0,122020.0,2.872451]
[1759986995579,0.1179248,122030.0,122020.0,2.874451]
[1759986995885,0.1179248,122030.0,122020.0,2.874491]
[1759986996480,0.1179248,122030.0,122020.0,2.876491]
[1759986996680,0.43711807,122030.0,122020.0,2.876491]
[1759986997086,0.83711807,122030.0,122020.0,2.8764973]
[1759986997281,0.85866083,122030.0,122020.0,2.8764973]
[1759986997587,0.85866083,122030.0,122020.0,0.0859373]
[1759986997588,0.83711807,122030.0,122020.0,0.0859373]
[1759986997886,0.83711807,122030.0,122020.0,2.8766173]
[1759986998084,0.83711807,122030.0,122020.0,2.8765773]
[1759986998686,0.5179248,122030.0,122020.0,2.8765773]
[1759986999287,0.83711807,122030.0,122020.0,2.8765773]
[1759987000284,0.83711807,122030.0,122020.0,0.0859373]
[1759987000489,0.83711807,122030.0,122020.0,2.8766173]
[1759987000789,0.5179248,122030.0,122020.0,2.8766173]
[1759987001083,0.83711807,122030.0,122020.0,2.8765373]
[1759987001589,0.5179248,122030.0,122020.0,2.8765373]
[1759987002389,0.5179248,122030.0,122020.0,2.1325373]
[1759987002390,0.1179248,122030.0,122020.0,2.1325373]
[1759987002589,0.1179248,122030.0,122020.0,2.8764973]
[1759987003087,0.43711807,122030.0,122020.0,2.1325373]
[1759987003287,0.43711807,122030.0,122020.0,2.8764973]
[1759987003786,0.1179248,122030.0,122020.0,2.8764973]
[1759987005191,0.43711807,122030.0,122020.0,2.8764973]
[1759987006184,0.1179248,122030.0,122020.0,2.1325373]
[1759987006390,0.1179248,122030.0,122020.0,2.8763373]
[1759987007393,0.13946144,122030.0,122020.0,2.8763373]
[1759987007890,0.13946144,122030.0,122020.0,2.81253057]
[1759987007891,0.01331,122030.0,122020.0,2.81253057]
[1759987008192,0.01331,122030.0,122020.0,3.95645057]
[1759987011993,0.01353,122040.0,122030.0,0.0819306]
[1759987012185,0.01353,122040.0,122030.0,0.76192387]
[1759987013199,0.01353,122040.0,122030.0,0.76292387]
[1759987013896,0.01353,122040.0,122030.0,0.68314595]
[1759987014598,0.01353,122040.0,122030.0,0.9225613]
[1759987014795,0.0954472,122050.0,122040.0,0.0819239]
[1759987014796,0.01353,122050.0,122040.0,0.0819239]
[1759987014995,0.01353,122050.0,122040.0,0.9215546]
[1759987015200,0.01353,122050.0,122040.0,1.6653546]
[1759987016000,0.01453,122050.0,122040.0,1.6653546]
[1759987016495,0.01453,122050.0,122040.0,0.9215546]
[1759987016695,0.01453,122050.0,122040.0,1.6653546]
[1759987016999,0.01653,122050.0,122040.0,1.6653546]
[1759987017404,0.01653,122050.0,122040.0,0.9215546]
[1759987017704,0.01653,122050.0,122040.0,3.7119546]
[1759987021403,0.01653,122050.0,122040.0,2.9682346]
[1759987021702,0.01653,122050.0,122040.0,3.7115946]
[1759987026408,0.01653,122050.0,122040.0,0.4427239]
[1759987026606,0.01653,122050.0,122040.0,3.7112346]
[1759987027308,0.01653,122050.0,122040.0,2.9679946]
[1759987027508,0.01653,122050.0,122040.0,3.7111946]
[1759987028404,0.01653,122050.0,122040.0,0.9215546]
[1759987028614,0.35978255,122050.0,122040.0,0.68213925]
[1759987028915,0.35978255,122050.0,122030.0,0.4427306]
[1759987028916,0.0954839,122040.0,122030.0,2.4891683]
[1759987029210,0.33489925,122040.0,122030.0,3.47186365]
[1759987029408,0.35645378,122040.0,122030.0,3.47186365]
[1759987029802,0.37749378,122040.0,122030.0,0.4427283]
[1759987030001,0.37749378,122040.0,122030.0,0.68214365]
[1759987030201,0.37749378,122040.0,122030.0,3.47186365]
[1759987030707,0.37749378,122040.0,122030.0,3.47286365]
[1759987030908,0.35593925,122040.0,122030.0,3.47286365]
[1759987031701,0.27401535,122040.0,122030.0,3.47286365]
[1759987032510,0.01356,122040.0,122030.0,2.72958365]
[1759987032710,0.01356,122040.0,122030.0,3.47278365]
[1759987034812,0.01356,122040.0,122030.0,3.2333683]
[1759987035014,0.01356,122040.0,122030.0,3.47278365]
[1759987035314,0.01356,122040.0,122030.0,2.72958365]
[1759987035514,0.01356,122040.0,122030.0,3.47266365]
[1759987036906,0.01356,122040.0,122030.0,3.47258365]
[1759987037313,0.03515373,122040.0,122030.0,3.47258365]
[1759987037814,0.03515373,122040.0,122030.0,3.2331683]
[1759987038015,0.03515373,122040.0,122030.0,3.47258365]
[1759987038514,0.03515373,122040.0,122030.0,3.2331683]
[1759987038714,0.01356,122040.0,122030.0,3.47258365]
[1759987042620,0.01356,122040.0,122030.0,2.72958365]
[1759987042817,0.01356,122040.0,122030.0,3.711759]
[1759987044021,0.01356,122040.0,122030.0,2.72958365]
[1759987044321,0.01356,122040.0,122030.0,3.47242365]
[1759987045923,0.01356,122040.0,122030.0,3.47246365]
[1759987049725,0.01356,122040.0,122030.0,3.711879]
[1759987049921,0.01356,122040.0,122030.0,3.711679]
[1759987052728,0.01356,122040.0,122030.0,3.47226365]
[1759987053730,0.01356,122040.0,122030.0,2.969079]
[1759987054031,0.01356,122040.0,122030.0,3.711519]
[1759987056632,0.01356,122040.0,122030.0,3.2326883]
[1759987056833,0.01356,122040.0,122030.0,3.711519]
[1759987066637,0.01356,122040.0,122030.0,2.969079]
[1759987066935,0.01356,122040.0,122030.0,3.711039]
[1759987072938,0.02166197,122050.0,122040.0,0.0819239]
[1759987073142,0.01393,122060.0,122050.0,0.0819172]
[1759987073441,0.03559346,122060.0,122050.0,1.42397255]
[1759987073943,0.03559346,122060.0,122050.0,1.50368823]
[1759987074444,0.03959346,122060.0,122050.0,1.50368823]
[1759987075046,0.04157926,122060.0,122050.0,1.50368823]
[1759987076041,0.04157926,122060.0,122050.0,1.1845572]
[1759987076241,0.04157926,122060.0,122050.0,1.50368823]
[1759987077345,0.04157926,122060.0,122050.0,0.76184823]
[1759987077945,0.04157926,122060.0,122050.0,1.50360823]
[1759987078147,0.04157926,122060.0,122050.0,3.54996823]
[1759987078849,0.04157926,122060.0,122050.0,0.76184823]
[1759987079049,0.04157926,122060.0,122050.0,3.54996823]
[1759987079545,0.04157926,122060.0,122050.0,3.54992823]
[1759987080158,0.04157926,122060.0,122050.0,0.76184823]
[1759987080648,0.12348976,122060.0,122050.0,0.4427172]
[1759987080860,0.86460079,122060.0,122050.0,3.2307572]
[1759987081154,0.86458646,122060.0,122050.0,3.2307572]
[1759987084351,0.86458646,122060.0,122050.0,2.4890372]
[1759987084653,0.86458646,122060.0,122050.0,3.2307572]
[1759987085253,0.0819172,122050.0,122040.0,0.4427189]
[1759987085555,0.43666823,122050.0,122040.0,0.4427189]
[1759987085746,0.43666823,122050.0,122040.0,3.2307589]
[1759987086557,0.43766823,122050.0,122040.0,3.2307589]
[1759987086953,0.43966823,122050.0,122040.0,3.2307589]
[1759987087555,0.46131051,122050.0,122040.0,3.2307589]
[1759987088257,0.14217948,122050.0,122040.0,3.2307589]
[1759987089655,0.86131051,122050.0,122040.0,2.4890389]
[1759987089855,0.86131051,122050.0,122040.0,3.2307589]
[1759987090761,0.86131051,122050.0,122040.0,3.2307989]
[1759987092964,1.22211051,122050.0,122040.0,2.8699989]
[1759987093766,0.1175439,122040.0,122030.0,0.4427304]
[1759987094064,0.1175439,122040.0,122030.0,3.2308904]
[1759987094965,0.1175439,122040.0,122030.0,3.2318904]
[1759987095964,0.1175439,122040.0,122030.0,2.4901304]
[1759987096165,0.03562,122040.0,122030.0,3.2318904]
[1759987099672,0.1175439,122040.0,122030.0,3.2318904]
[1759987099871,0.1175439,122040.0,122030.0,0.4437304]
[1759987100072,0.1175439,122040.0,122030.0,3.2319704]
[1759987100572,0.1175439,122040.0,122030.0,0.4437304]
[1759987100870,0.1175439,122040.0,122030.0,3.2319704]
[1759987101169,0.43667493,122040.0,122030.0,0.0829304]
[1759987101366,0.79747493,122040.0,122030.0,2.8711704]
[1759987101968,0.79747493,122040.0,122030.0,2.78924]
[1759987101969,0.81909308,122040.0,122030.0,2.78924]
[1759987102169,0.81909308,122040.0,122030.0,2.8711706]
[1759987103167,0.81909308,122040.0,122030.0,0.0829306]
[1759987103369,0.81909308,122040.0,122030.0,2.8712106]
[1759987104263,1.21909308,122040.0,122030.0,2.8712106]
[1759987105273,1.21909308,122040.0,122030.0,0.0829306]
[1759987105473,1.21909308,122040.0,122030.0,2.8712906]
[1759987106875,0.89996205,122040.0,122030.0,0.001]
[1759987107170,1.21909308,122040.0,122030.0,0.7428]
[1759987107371,1.21909308,122040.0,122030.0,0.001]
[1759987107573,1.21909308,122040.0,122030.0,0.7428]
[1759987108065,1.21909308,122040.0,122030.0,0.001]
[1759987108270,1.21909308,122040.0,122030.0,0.7428]
[1759987108775,1.53822411,122040.0,122030.0,0.001]
[1759987108969,1.21909308,122040.0,122030.0,0.7428]
[1759987109973,1.21909308,122040.0,122030.0,0.74284]
[1759987110768,1.21909308,122040.0,122030.0,0.001]
[1759987110975,1.21909308,122040.0,122030.0,0.74284]
[1759987111770,1.53822411,122040.0,122030.0,0.001]
[1759987112172,1.53822411,122040.0,122030.0,0.40704]
[1759987112474,1.53822411,122040.0,122030.0,0.001]
[1759987112675,1.53822411,122040.0,122030.0,0.74284]
[1759987113176,0.89996205,122040.0,122030.0,0.74284]
[1759987113377,1.53822411,122040.0,122030.0,0.74284]
[1759987114282,0.89996205,122040.0,122030.0,0.001]
[1759987114579,0.89996205,122040.0,122030.0,0.49156]
[1759987114580,1.53822411,122040.0,122030.0,0.49156]
[1759987115177,1.53822411,122040.0,122030.0,0.001]
[1759987115475,1.53822411,122040.0,122030.0,0.74288]
[1759987116980,0.89996205,122040.0,122030.0,0.74288]
[1759987117278,1.53822411,122040.0,122030.0,0.74288]
[1759987120584,0.89996205,122040.0,122030.0,0.74288]
[1759987120778,1.53822411,122040.0,122030.0,0.74288]
[1759987122183,0.89996205,122040.0,122030.0,0.74288]
[1759987122383,1.13822411,122040.0,122030.0,0.74288]
[1759987123783,1.13822411,122040.0,122030.0,0.001]
[1759987123980,1.13822411,122040.0,122030.0,0.74296]
[1759987124182,1.13822411,122040.0,122030.0,0.001]
[1759987124379,1.13822411,122040.0,122030.0,0.74296]
[1759987126582,1.53822411,122040.0,122030.0,0.74296]
[1759987129389,1.53822411,122040.0,122000.0,2.4897865]
[1759987129390,0.0136,122000.0,121990.0,0.442754]
[1759987129591,0.0136,122000.0,121990.0,3.231754]
[1759987129787,0.03521815,122000.0,121990.0,3.231754]
[1759987129991,0.11716895,122000.0,121990.0,3.231754]
[1759987130886,0.0955508,122000.0,121990.0,3.231754]
[1759987131093,0.0965508,122000.0,121990.0,3.56388503]
[1759987131293,0.11817761,122000.0,121990.0,3.56388503]
[1759987131886,0.11817761,122000.0,121990.0,3.58688503]
[1759987135799,0.03622681,122000.0,121990.0,3.58688503]
[1759987135996,0.03622681,122000.0,121990.0,3.50735049]
[1759987139495,0.02262681,122000.0,121990.0,3.40498698]
[1759987139901,0.02262681,122000.0,121990.0,2.925794]
[1759987140199,0.02262681,122000.0,121990.0,4.14694698]
[1759987140399,0.02262681,122000.0,121990.0,2.925794]
[1759987140599,0.02262681,122000.0,121990.0,4.14694698]
[1759987141295,0.02262681,122000.0,121990.0,3.40498698]
[1759987141598,0.02262681,122000.0,121990.0,4.14694698]
[1759987142695,0.02262681,122000.0,121990.0,3.40498698]
[1759987142996,0.0955312,122030.0,122010.0,0.0819441]
[1759987143203,0.03527678,122030.0,122020.0,1.30309028]
[1759987143407,0.03527678,122030.0,122020.0,1.32193028]
[1759987143602,0.03527678,122030.0,122020.0,2.06389028]
[1759987145009,0.03527678,122030.0,122020.0,2.06589028]
[1759987145206,0.03527678,122030.0,122020.0,2.06689028]
[1759987146306,0.0136,122030.0,122020.0,2.06689028]
[1759987147311,0.0136,122030.0,122020.0,3.87429379]
[1759987147905,0.25319649,122030.0,122020.0,3.87429379]
[1759987149007,0.25319649,122030.0,122020.0,3.6346973]
[1759987149313,0.35831709,122030.0,122020.0,3.2346573]
[1759987149502,0.35831709,122030.0,122020.0,0.0849373]
[1759987149711,0.61953788,122030.0,122020.0,0.0849373]
[1759987150006,0.61953788,122030.0,122020.0,0.8268173]
[1759987150309,0.61953788,122030.0,122020.0,0.003]
[1759987150505,0.61953788,122030.0,122020.0,0.74488]
[1759987150701,0.61953788,122030.0,122020.0,0.0849373]
[1759987150909,0.61953788,122030.0,122020.0,0.8268173]
[1759987152912,0.61953788,122030.0,122020.0,0.0849373]
[1759987153108,0.37994139,122030.0,122020.0,0.8268173]
[1759987153307,0.37994139,122030.0,122020.0,0.0849373]
[1759987153508,0.37994139,122030.0,122020.0,0.8268173]
[1759987154308,0.37994139,122030.0,122020.0,0.74488]
[1759987154514,0.37994139,122030.0,122020.0,0.0849373]
[1759987154711,0.37994139,122030.0,122020.0,0.8268173]
[1759987155211,0.37994139,122030.0,122020.0,0.74488]
[1759987156713,0.61953788,122030.0,122020.0,0.003]
[1759987156907,0.37994139,122030.0,122020.0,0.74488]
[1759987157313,0.37994139,122030.0,122020.0,0.8268173]
[1759987158816,0.37994139,122030.0,122020.0,0.74488]
[1759987160607,0.37994139,122030.0,122020.0,0.003]
[1759987160814,0.37994139,122030.0,122020.0,0.74488]
[1759987161316,0.37994139,122030.0,122020.0,0.003]
[1759987161518,0.61953788,122030.0,122020.0,0.74488]
[1759987161819,0.61953788,122030.0,122020.0,0.003]
[1759987162015,0.98033788,122030.0,122020.0,0.74488]
[1759987165420,0.98033788,122030.0,122020.0,0.003]
[1759987165620,0.98033788,122030.0,122020.0,0.74488]
[1759987169223,0.5011449,122030.0,122020.0,0.74488]
[1759987169522,0.98033788,122030.0,122020.0,0.74488]
[1759987171119,0.74074139,122030.0,122020.0,0.74488]
[1759987175726,0.98033788,122030.0,122020.0,0.74488]
[1759987176428,0.5011449,122030.0,122020.0,0.74488]
[1759987176731,0.98033788,122030.0,122020.0,0.74488]
[1759987177233,1.38033788,122030.0,122020.0,0.003]
[1759987177526,1.38033788,122030.0,122020.0,0.74488]
[1759987177727,0.9011449,122030.0,122020.0,0.74488]
[1759987177927,1.38033788,122030.0,122020.0,0.74488]
[1759987178826,1.38033788,122030.0,122020.0,0.72622055]
[1759987179227,0.1159841,122010.0,122000.0,0.4427489]
[1759987179425,0.37720489,122010.0,122000.0,3.2316689]
[1759987179927,0.37720489,122010.0,122000.0,2.40784]
[1759987180128,0.37720489,122010.0,122000.0,3.14972]
[1759987180525,0.37820489,122010.0,122000.0,3.17072]
[1759987180829,0.37820489,122010.0,122000.0,3.2526708]
[1759987182530,0.1386084,122010.0,122000.0,3.2526708]
[1759987182725,0.37820489,122010.0,122000.0,3.2526708]
[1759987183128,0.37820489,122010.0,122000.0,2.5107908]
[1759987183329,0.37820489,122010.0,122000.0,3.2526708]
[1759987183630,0.37820489,122010.0,122000.0,2.5107908]
[1759987183929,0.37820489,122010.0,122000.0,3.2526708]
[1759987184531,0.37820489,122010.0,122000.0,2.5107908]
[1759987184829,0.37820489,122010.0,122000.0,3.2526708]
[1759987185532,0.1386084,122010.0,122000.0,3.2526708]
[1759987185725,0.37820489,122010.0,122000.0,3.2526708]
[1759987188431,0.37820489,122010.0,122000.0,2.8918708]
[1759987189230,0.37820489,122010.0,122000.0,3.13146729]
[1759987189432,0.37820489,122010.0,122000.0,2.8918708]
[1759987193340,0.61780138,122010.0,122000.0,0.021]
[1759987193638,0.97860138,122010.0,122000.0,0.76284]
[1759987193936,0.97860138,122010.0,122000.0,0.8447908]
[1759987194130,0.73900489,122010.0,122000.0,0.8447908]
[1759987195734,0.73900489,122010.0,122000.0,0.76284]
[1759987195936,0.8189289,122010.0,122000.0,0.76284]
[1759987196137,0.8189289,122010.0,122000.0,0.8447908]
[1759987196433,0.8189289,122010.0,122000.0,0.76284]
[1759987197136,0.8189289,122010.0,122000.0,0.8447908]
[1759987197725,0.8189289,122010.0,122000.0,0.1029508]
[1759987197931,0.4581289,122010.0,122000.0,0.8447908]
[1759987198735,0.4581289,122010.0,122000.0,0.1029508]
[1759987198929,0.4581289,122010.0,122000.0,0.8447908]
[1759987199832,0.4581289,122010.0,122000.0,0.1029508]
[1759987200036,0.4581289,122010.0,122000.0,0.8447908]
[1759987200236,0.4581289,122010.0,122000.0,0.1029508]
[1759987200438,0.4581289,122010.0,122000.0,0.76284]
[1759987200739,0.4581289,122010.0,122000.0,0.021]
[1759987201239,0.4581289,122010.0,122000.0,0.1029508]
[1759987201433,0.4581289,122010.0,122000.0,0.8447908]
[1759987201738,0.4581289,122010.0,122000.0,0.1029508]
[1759987202033,0.4581289,122010.0,122000.0,0.8447908]
[1759987203736,0.4581289,122010.0,122000.0,0.1029508]
[1759987203936,0.4581289,122010.0,122000.0,0.8447908]
[1759987204837,0.4581289,122010.0,122000.0,0.1029508]
[1759987205037,0.4581289,122010.0,122000.0,0.8447908]
[1759987205238,0.4581289,122010.0,122000.0,0.1029508]
[1759987205438,0.4581289,122010.0,122000.0,0.8447908]
[1759987207739,0.4581289,122010.0,122000.0,0.1029508]
[1759987207940,0.4581289,122010.0,122000.0,0.8447908]
[1759987208239,0.4581289,122010.0,122000.0,0.1029508]
[1759987208435,0.4581289,122010.0,122000.0,0.8447908]
[1759987209838,0.4581289,122010.0,122000.0,0.1029508]
[1759987210038,0.4581289,122010.0,122000.0,0.8447908]
[1759987210246,0.4581289,122010.0,122000.0,0.1029508]
[1759987210430,0.4581289,122010.0,122000.0,0.8447908]
[1759987210846,0.4581289,122010.0,122000.0,0.1029508]
[1759987211035,0.4581289,122010.0,122000.0,0.8447508]
[1759987211235,0.4581289,122010.0,122000.0,0.1029508]
[1759987211740,0.4581289,122010.0,122000.0,0.8447508]
[1759987213537,0.4581289,122010.0,122000.0,0.1029508]
[1759987213938,0.4581289,122010.0,122000.0,0.8447508]
[1759987214242,0.4581289,122010.0,122000.0,0.1029508]
[1759987214448,0.4581289,122010.0,122000.0,0.8447508]
[1759987215838,0.0353843,122010.0,122000.0,0.4637508]
[1759987216038,0.0353843,122010.0,122000.0,0.7832713]
[1759987216239,0.0353843,122010.0,122000.0,0.4637508]
[1759987216240,0.1173284,122010.0,122000.0,0.4637508]
[1759987216539,0.1173284,122010.0,122000.0,3.2527508]
[1759987216942,0.4368489,122010.0,122000.0,2.1501508]
[1759987217243,0.7976489,122010.0,122000.0,2.8919508]
[1759987217644,0.4368489,122010.0,122000.0,2.8919508]
[1759987217845,0.4368489,122010.0,122000.0,2.1501508]
[1759987218144,0.4368489,122010.0,122000.0,2.8919508]
[1759987218344,0.4368489,122010.0,122000.0,2.1501508]
[1759987218345,0.43667814,122010.0,122000.0,2.1501508]
[1759987218546,0.43667814,122010.0,122000.0,2.8919508]
[1759987219746,0.45856814,122010.0,122000.0,0.8447508]
[1759987220044,0.45856814,122010.0,122000.0,0.1029508]
[1759987220246,0.45856814,122010.0,122000.0,0.8447508]
[1759987220641,0.45856814,122010.0,122000.0,0.1029508]
[1759987220841,0.45856814,122010.0,122000.0,0.8447508]
[1759987221348,1.53888864,122010.0,122000.0,0.021]
[1759987221541,1.53888864,122010.0,122000.0,0.7628]
[1759987221742,1.53888864,122010.0,122000.0,0.74413703]
[1759987224843,1.53888864,122010.0,122000.0,0.00233703]
[1759987225051,1.53888864,122010.0,122000.0,0.74413703]
[1759987225348,1.21936814,122010.0,122000.0,0.74413703]
[1759987225548,1.21936814,122010.0,122000.0,0.00233703]
[1759987225849,1.21936814,122010.0,122000.0,0.74413703]
[1759987226741,1.53888864,122010.0,122000.0,0.74413703]
[1759987227246,1.53888864,122010.0,122000.0,0.08428783]
[1759987227247,1.21936814,122010.0,122000.0,0.08428783]
[1759987227454,0.81936814,122010.0,122000.0,0.08428783]
[1759987227650,0.81936814,122010.0,122000.0,0.82612783]
[1759987228142,0.81936814,122010.0,122000.0,0.08428783]
[1759987228342,0.81936814,122010.0,122000.0,0.82612783]
[1759987234555,0.81936814,122010.0,122000.0,0.08428783]
[1759987234750,0.37662404,122010.0,122000.0,0.82612783]
[1759987234955,0.45856814,122010.0,122000.0,0.82612783]
[1759987235256,0.05710354,122010.0,122000.0,0.82612783]
[1759987235858,0.13904764,122010.0,122000.0,0.82612783]
[1759987236355,0.45856814,122010.0,122000.0,0.82612783]
[1759987236854,0.13904764,122010.0,122000.0,0.82612783]
[1759987237049,0.13904764,122010.0,122000.0,0.08428783]
[1759987237255,0.45856814,122010.0,122000.0,0.82612783]
[1759987237448,0.37662404,122010.0,122000.0,0.82612783]
[1759987237648,0.05710354,122010.0,122000.0,0.82612783]
[1759987238050,0.05710354,122010.0,122000.0,1.18692783]
[1759987238758,0.05710354,122010.0,122000.0,0.44508783]
[1759987239159,0.13904764,122010.0,122000.0,0.82608783]
[1759987239354,0.13904764,122010.0,122000.0,1.18688783]
[1759987240360,0.13904764,122010.0,122000.0,0.82608783]
[1759987240660,0.13904764,122010.0,122000.0,1.18688783]
[1759987241060,0.45856814,122010.0,122000.0,1.18688783]
[1759987242655,0.45856814,122010.0,122000.0,0.82608783]
[1759987243362,0.13904764,122010.0,122000.0,0.82608783]
[1759987243663,0.45856814,122010.0,122000.0,0.82608783]
[1759987248173,0.45856814,122010.0,122000.0,0.08428783]
[1759987248474,0.45856814,122010.0,122000.0,0.82604783]
[1759987248671,0.45856814,122010.0,122000.0,0.08428783]
[1759987248873,0.45856814,122010.0,122000.0,0.82604783]
[1759987249570,0.45856814,122010.0,122000.0,0.08428783]
[1759987249867,0.45856814,122010.0,122000.0,0.82604783]
[1759987251475,0.13904764,122010.0,122000.0,0.82604783]
[1759987251673,0.45856814,122010.0,122000.0,0.82604783]
[1759987251965,0.45856814,122010.0,122000.0,0.82600783]
[1759987253373,0.45856814,122010.0,122000.0,0.08428783]
[1759987253572,0.45856814,122010.0,122000.0,0.82600783]
[1759987256078,0.13904764,122010.0,122000.0,0.08428783]
[1759987256280,0.13904764,122010.0,122000.0,0.82600783]
[1759987256578,0.45856814,122010.0,122000.0,0.82600783]
[1759987257875,0.37868286,122010.0,122000.0,0.82600783]
[1759987260373,0.37868286,122010.0,122000.0,0.08428783]
[1759987260878,0.37868286,122010.0,122000.0,0.82596783]
[1759987261570,0.61831808,122010.0,122000.0,0.08428783]
[1759987261781,0.61831808,122010.0,122000.0,0.00233703]
[1759987261782,0.97911808,122010.0,122000.0,0.00233703]
[1759987262165,0.97911808,122010.0,122000.0,0.74401703]
[1759987263071,0.49984764,122010.0,122000.0,0.74401703]
[1759987263367,0.97911808,122010.0,122000.0,0.00233703]
[1759987263568,0.97911808,122010.0,122000.0,0.74401703]
[1759987264780,0.97911808,122010.0,122000.0,0.00233703]